bitfinex/quotes_BTCUSD_20240902
["timestamp","ask_amount","ask_price","bid_price","bid_amount"]
[1725256325229,0.65595855,58012.0,58011.0,0.0921139]
[1725256326934,0.41462955,58012.0,58011.0,0.0921139]
[1725256328083,0.41462955,58012.0,58011.0,0.17577112]
[1725256328320,0.000818,58012.0,58011.0,0.17577112]
[1725256328529,0.000818,58012.0,58011.0,0.29257823]
[1725256328783,0.000818,58012.0,58011.0,0.41324423]
[1725256329019,0.05181855,58023.0,58022.0,0.37893]
[1725256329298,0.000818,58025.0,58024.0,0.1714]
[1725256329511,0.000818,58025.0,58024.0,0.29548545]
[1725256329768,0.000818,58025.0,58024.0,0.1714]
[1725256331528,0.000818,58025.0,58024.0,0.292039]
[1725256331758,0.000818,58025.0,58024.0,0.538318]
[1725256332008,0.000818,58025.0,58024.0,0.38370917]
[1725256332270,0.000818,58025.0,58024.0,0.52302597]
[1725256332531,0.000818,58025.0,58024.0,0.4363558]
[1725256334476,0.000818,58025.0,58024.0,0.9189138]
[1725256334739,0.000818,58025.0,58024.0,1.1601928]
[1725256335211,0.241202,58043.0,58038.0,0.002]
[1725256335472,0.120608,58039.0,58038.0,0.012]
[1725256335716,0.220608,58039.0,58038.0,0.017]
[1725256335950,0.23501279,58039.0,58038.0,0.017]
[1725256337651,0.47622979,58039.0,58038.0,0.017]
[1725256340306,0.47622979,58039.0,58038.0,0.015]
[1725256340538,0.71744679,58039.0,58038.0,0.015]
[1725256342210,0.71744679,58039.0,58038.0,0.017]
[1725256343224,0.71744679,58039.0,58038.0,0.012]
[1725256343462,0.71744679,58039.0,58037.0,0.005]
[1725256343463,0.361831,58038.0,58037.0,0.005]
[1725256343728,0.361843,58036.0,58035.0,0.017]
[1725256343945,0.944301,58036.0,58035.0,0.017]
[1725256345708,0.703072,58036.0,58035.0,0.017]
[1725256345933,0.461843,58036.0,58035.0,0.3161168]
[1725256346359,0.1,58036.0,58035.0,0.34772848]
[1725256346566,0.120614,58036.0,58035.0,0.34772848]
[1725256346777,0.220614,58036.0,58035.0,0.34772848]
[1725256347000,0.1,58036.0,58035.0,0.34772848]
[1725256347638,0.1,58036.0,58035.0,0.3161168]
[1725256347865,0.220608,58039.0,58038.0,0.002]
[1725256348751,0.220608,58039.0,58038.0,0.00111562]
[1725256348971,0.220608,58039.0,58038.0,0.01111562]
[1725256349240,0.220608,58039.0,58038.0,0.08861562]
[1725256349456,0.220608,58039.0,58038.0,0.08951432]
[1725256349878,0.1,58039.0,58038.0,0.08951432]
[1725256350484,0.100817,58039.0,58038.0,0.08951432]
[1725256351463,0.100817,58039.0,58038.0,0.21012432]
[1725256351675,0.100817,58039.0,58038.0,0.30002432]
[1725256351873,0.000817,58039.0,58038.0,0.60964721]
[1725256352518,0.000817,58039.0,58038.0,1.09208921]
[1725256352685,0.000817,58039.0,58038.0,0.78246632]
[1725256353083,0.000817,58039.0,58038.0,0.54124532]
[1725256354135,0.000817,58039.0,58038.0,1.02368732]
[1725256354929,0.000817,58039.0,58038.0,0.78246632]
[1725256355559,0.000817,58039.0,58038.0,1.02368732]
[1725256356614,0.000817,58039.0,58038.0,0.78246632]
[1725256357495,0.000817,58039.0,58038.0,0.87464463]
[1725256357702,0.000817,58039.0,58038.0,0.78246632]
[1725256358956,0.000817,58039.0,58038.0,1.02368732]
[1725256359162,0.000817,58039.0,58038.0,0.78246632]
[1725256359407,0.000817,58039.0,58038.0,1.02368732]
[1725256360735,0.02463952,58042.0,58041.0,0.91765242]
[1725256360951,0.120591,58048.0,58047.0,0.00111562]
[1725256361165,0.120591,58048.0,58047.0,0.14043242]
[1725256361792,0.000817,58050.0,58049.0,0.01611562]
[1725256362427,0.000817,58050.0,58049.0,0.10761562]
[1725256363018,0.02785043,58050.0,58049.0,0.17921562]
[1725256363315,0.23154674,58058.0,58050.0,0.120585]
[1725256363580,0.35211574,58058.0,58057.0,0.00111562]
[1725256363795,0.120569,58058.0,58057.0,0.00111562]
[1725256364867,0.361707,58058.0,58057.0,0.00111562]
[1725256365078,0.361707,58058.0,58057.0,0.00611562]
[1725256365507,0.461707,58058.0,58057.0,0.00611562]
[1725256368215,0.48873885,58058.0,58057.0,0.00611562]
[1725256368648,0.461707,58058.0,58057.0,0.00611562]
[1725256368858,0.461507,58058.0,58057.0,0.00611562]
[1725256369676,0.461307,58058.0,58057.0,0.005]
[1725256369885,0.461307,58058.0,58057.0,0.00611562]
[1725256370310,0.1,58058.0,58057.0,0.10626084]
[1725256370569,0.0004,58059.0,58058.0,0.68586062]
[1725256370787,0.0004,58059.0,58058.0,1.01052013]
[1725256371103,0.0004,58059.0,58058.0,1.20818667]
[1725256371306,0.0004,58059.0,58058.0,0.85598213]
[1725256372067,0.0004,58059.0,58058.0,0.91157795]
[1725256372529,0.0004,58059.0,58058.0,1.15271595]
[1725256372759,0.00818,58071.0,58058.0,1.15271595]
[1725256372760,0.00818,58071.0,58070.0,0.37774762]
[1725256373000,0.00818,58071.0,58070.0,1.20304095]
[1725256373228,0.0004,58079.0,58071.0,1.02200962]
[1725256373676,0.0004,58079.0,58071.0,1.42690962]
[1725256373912,0.0004,58079.0,58071.0,1.45190962]
[1725256374129,0.0004,58079.0,58072.0,0.01211562]
[1725256374368,0.0004,58079.0,58078.0,0.75786995]
[1725256374566,0.0004,58079.0,58078.0,0.91996995]
[1725256375413,0.0004,58079.0,58078.0,1.16102495]
[1725256375625,0.0004,58079.0,58078.0,1.01973206]
[1725256376311,0.0004,58079.0,58078.0,0.67891495]
[1725256376524,0.0004,58079.0,58078.0,0.91996995]
[1725256377637,0.0004,58079.0,58078.0,0.67891495]
[1725256379535,0.0004,58079.0,58078.0,0.91996995]
[1725256379766,0.0004,58079.0,58078.0,1.16102495]
[1725256380044,0.0004,58079.0,58078.0,1.27732745]
[1725256380796,0.0004,58079.0,58078.0,1.54638245]
[1725256381072,0.0004,58079.0,58078.0,1.54838245]
[1725256381313,0.00817,58098.0,58092.0,0.61860762]
[1725256381314,0.0270143,58093.0,58092.0,0.61860762]
[1725256381559,0.00817,58098.0,58097.0,0.37507962]
[1725256381836,0.00817,58098.0,58097.0,0.51419695]
[1725256382353,0.00817,58098.0,58097.0,0.60549695]
[1725256382666,0.00817,58098.0,58097.0,0.84647295]
[1725256382840,0.00817,58098.0,58097.0,0.60549695]
[1725256383095,0.00817,58098.0,58097.0,0.87702828]
[1725256383574,0.00797,58098.0,58097.0,0.87702828]
[1725256384427,0.00777,58098.0,58097.0,0.87702828]
[1725256385066,0.00757,58098.0,58097.0,0.87702828]
[1725256385276,0.00757,58098.0,58097.0,1.11800428]
[1725256385494,0.00757,58098.0,58097.0,1.12000428]
[1725256385714,0.00737,58098.0,58097.0,1.11800428]
[1725256386483,0.00717,58098.0,58097.0,0.87702828]
[1725256386914,0.00717,58098.0,58097.0,1.11800428]
[1725256387150,0.00697,58098.0,58097.0,0.87702828]
[1725256387380,0.00697,58098.0,58097.0,1.11800428]
[1725256387856,0.00677,58098.0,58097.0,1.11800428]
[1725256389212,0.00817,58117.0,58116.0,0.25701262]
[1725256389423,0.00817,58117.0,58116.0,0.44966062]
[1725256389869,0.00817,58117.0,58116.0,0.69055762]
[1725256390081,0.00817,58117.0,58116.0,0.93145462]
[1725256390338,0.00817,58117.0,58116.0,1.31146895]
[1725256390556,0.00817,58132.0,58131.0,0.27564995]
[1725256390775,0.0004,58139.0,58137.0,0.36233062]
[1725256391019,0.0004,58139.0,58137.0,0.54768101]
[1725256391469,0.0013,58150.0,58149.0,0.51637295]
[1725256391698,0.0013,58150.0,58149.0,0.75713295]
[1725256392349,0.0013,58150.0,58149.0,0.43751295]
[1725256392574,0.0013,58150.0,58149.0,0.96278425]
[1725256392816,0.0013,58150.0,58149.0,1.20354425]
[1725256393068,0.0046,58157.0,58156.0,0.13148062]
[1725256393326,0.0046,58157.0,58156.0,0.37221162]
[1725256393558,0.0046,58157.0,58156.0,0.45241792]
[1725256394032,0.0046,58157.0,58156.0,0.21168692]
[1725256394248,0.0100826,58158.0,58157.0,0.01111562]
[1725256394421,0.2247436,58158.0,58157.0,0.01611562]
[1725256394836,0.1043826,58158.0,58157.0,0.01611562]
[1725256395207,0.1766826,58158.0,58153.0,0.005]
[1725256395454,0.13911733,58156.0,58149.0,0.005]
[1725256395655,0.57582,58149.0,58147.0,0.005]
[1725256395860,0.361159,58146.0,58145.0,0.00611562]
[1725256396214,0.120386,58146.0,58145.0,0.01111562]
[1725256396417,0.50853598,58146.0,58145.0,0.01611562]
[1725256396628,0.601932,58146.0,58145.0,0.00111562]
[1725256396847,0.601932,58146.0,58145.0,0.01611562]
[1725256397268,0.601932,58146.0,58145.0,0.01111562]
[1725256397473,0.601932,58146.0,58125.0,0.240856]
[1725256397474,0.601942,58145.0,58144.0,0.005]
[1725256397717,0.601942,58145.0,58139.0,0.00111562]
[1725256397718,0.361183,58142.0,58141.0,0.005]
[1725256397923,0.601972,58142.0,58141.0,0.005]
[1725256398121,0.942761,58142.0,58141.0,0.005]
[1725256398342,0.942561,58142.0,58141.0,0.005]
[1725256398477,0.701772,58142.0,58141.0,0.01]
[1725256398660,0.701772,58142.0,58141.0,0.015]
[1725256399071,0.701572,58142.0,58141.0,0.015]
[1725256399282,0.701572,58142.0,58141.0,0.01611562]
[1725256399511,0.460783,58142.0,58141.0,0.01611562]
[1725256399710,0.701372,58142.0,58141.0,0.01611562]
[1725256399976,0.701372,58142.0,58141.0,0.015]
[1725256400347,0.701172,58142.0,58141.0,0.015]
[1725256400621,0.701172,58142.0,58141.0,0.005]
[1725256400622,1.031361,58142.0,58141.0,0.005]
[1725256401249,1.031161,58142.0,58141.0,0.005]
[1725256401513,1.031161,58142.0,58134.0,0.00111562]
[1725256401514,0.315044,58153.0,58152.0,0.005]
[1725256401711,0.435416,58153.0,58152.0,0.005]
[1725256401941,0.535216,58153.0,58152.0,0.005]
[1725256402151,0.220372,58153.0,58152.0,0.005]
[1725256402309,0.70186,58153.0,58152.0,0.005]
[1725256402655,0.48790454,58153.0,58152.0,0.00611562]
[1725256403083,0.72864854,58153.0,58152.0,0.00611562]
[1725256403499,0.72864854,58153.0,58152.0,0.005]
[1725256403941,0.361159,58146.0,58145.0,0.015]
[1725256404153,0.461159,58146.0,58145.0,0.015]
[1725256404360,0.701932,58146.0,58145.0,0.015]
[1725256404785,0.96969596,58146.0,58145.0,0.01]
[1725256405002,0.96969596,58146.0,58145.0,0.005]
[1725256405003,1.12939596,58146.0,58145.0,0.005]
[1725256406524,1.102405,58146.0,58145.0,0.005]
[1725256406734,1.1018941,58146.0,58145.0,0.005]
[1725256407844,0.841566,58146.0,58136.0,0.005]
[1725256408089,0.841566,58146.0,58135.0,0.00111562]
[1725256408090,0.361221,58136.0,58135.0,0.01611562]
[1725256408584,0.842849,58136.0,58135.0,0.01611562]
[1725256409072,0.602035,58136.0,58135.0,0.01611562]
[1725256409582,0.602035,58136.0,58135.0,0.01701322]
[1725256410337,0.602035,58136.0,58135.0,0.0158976]
[1725256410577,0.71266449,58136.0,58135.0,0.0058976]
[1725256410811,0.98047363,58136.0,58135.0,0.0058976]
[1725256411043,1.33562863,58136.0,58135.0,0.0008976]
[1725256411306,1.33562863,58136.0,58135.0,0.0058976]
[1725256411537,1.33562863,58136.0,58135.0,0.0008976]
[1725256412447,1.73653963,58136.0,58135.0,0.0008976]
[1725256413618,1.97735363,58136.0,58135.0,0.0008976]
[1725256413834,2.15080872,58136.0,58135.0,0.0008976]
[1725256414059,1.93299472,58136.0,58135.0,0.0008976]
[1725256414271,2.17380872,58136.0,58135.0,0.0008976]
[1725256415253,2.58317436,58136.0,58135.0,0.0008976]
[1725256415460,1.94422362,58136.0,58135.0,0.0008976]
[1725256415672,2.18503762,58136.0,58135.0,0.0008976]
[1725256420222,2.18503762,58136.0,58108.0,0.00344136]
[1725256420223,0.843241,58109.0,58108.0,0.50540786]
[1725256420474,0.972583,58109.0,58108.0,0.50540786]
[1725256420688,0.1,58109.0,58108.0,0.51040786]
[1725256420906,0.1,58109.0,58097.0,0.00111562]
[1725256420907,0.361395,58108.0,58107.0,0.005]
[1725256421166,0.361395,58108.0,58096.0,0.0945]
[1725256421167,0.361444,58100.0,58099.0,0.015]
[1725256421378,0.777266,58108.0,58107.0,0.005]
[1725256421379,0.71639983,58108.0,58107.0,0.005]
[1725256421594,0.47546983,58108.0,58107.0,0.005]
[1725256421809,0.120469,58106.0,58105.0,0.015]
[1725256422021,0.702345,58106.0,58105.0,0.015]
[1725256422923,0.729355,58106.0,58105.0,0.015]
[1725256423141,0.2964391,58106.0,58101.0,0.005]
[1725256423354,0.361438,58101.0,58100.0,0.005]
[1725256423633,0.702397,58101.0,58100.0,0.01611562]
[1725256424062,0.1,58101.0,58100.0,0.01611562]
[1725256424721,0.1,58102.0,58101.0,0.09551562]
[1725256424938,0.220477,58102.0,58101.0,0.10551562]
[1725256425157,0.943342,58102.0,58101.0,0.015]
[1725256425375,0.943342,58102.0,58092.0,0.0894]
[1725256425376,0.14504768,58102.0,58097.0,0.00611562]
[1725256425596,0.361458,58098.0,58097.0,0.01611562]
[1725256425813,0.70243,58098.0,58097.0,0.01611562]
[1725256426468,0.70243,58098.0,58097.0,0.015]
[1725256426686,0.943402,58098.0,58097.0,0.005]
[1725256426917,0.943402,58098.0,58097.0,0.01]
[1725256427152,0.70243,58098.0,58097.0,0.015]
[1725256428371,0.240985,58095.0,58087.0,0.005]
[1725256428619,0.240985,58095.0,58084.0,0.0008987]
[1725256428620,0.361531,58086.0,58085.0,0.015]
[1725256428854,0.843573,58086.0,58085.0,0.015]
[1725256429136,0.461531,58086.0,58085.0,0.015]
[1725256429368,0.1,58086.0,58085.0,0.01611562]
[1725256429843,0.22051,58086.0,58085.0,0.01611562]
[1725256430052,0.1,58086.0,58085.0,0.01611562]
[1725256430470,0.42243405,58086.0,58085.0,0.01]
[1725256430678,0.702552,58086.0,58085.0,0.01]
[1725256430892,0.702552,58086.0,58085.0,0.005]
[1725256431103,0.602565,58085.0,58084.0,0.0058987]
[1725256431320,0.702565,58085.0,58084.0,0.0158987]
[1725256432185,0.72958372,58085.0,58084.0,0.0158987]
[1725256432609,0.70081034,58085.0,58084.0,0.0158987]
[1725256433048,0.70081034,58085.0,58084.0,0.0058987]
[1725256433270,1.37897634,58085.0,58084.0,0.0008987]
[1725256433525,1.46314396,58085.0,58084.0,0.0008987]
[1725256433767,1.53424396,58085.0,58084.0,0.0008987]
[1725256433985,1.77526996,58085.0,58084.0,0.0008987]
[1725256434196,1.74825124,58085.0,58084.0,0.0008987]
[1725256434403,1.43714421,58085.0,58084.0,0.0008987]
[1725256434607,0.67379162,58085.0,58084.0,0.0058987]
[1725256435245,0.67379162,58085.0,58084.0,0.0108987]
[1725256435922,0.67379162,58085.0,58084.0,0.0008987]
[1725256436169,0.67379162,58085.0,58084.0,0.0058987]
[1725256437465,0.67379162,58085.0,58084.0,0.00701432]
[1725256437711,0.67379162,58085.0,58084.0,0.0058987]
[1725256438161,0.67379162,58085.0,58084.0,0.0008987]
[1725256438371,0.76527278,58085.0,58084.0,0.0008987]
[1725256438597,1.60576978,58085.0,58084.0,0.0008987]
[1725256438820,1.61985708,58085.0,58084.0,0.0008987]
[1725256440105,1.0453233,58085.0,58084.0,0.0008987]
[1725256440361,0.13898508,58111.0,58098.0,0.005]
[1725256440575,0.50540786,58128.0,58100.0,0.015]
[1725256440576,0.069074,58109.0,58100.0,0.015]
[1725256440813,0.491152,58110.0,58100.0,0.015]
[1725256440814,0.162,58108.0,58106.0,0.005]
[1725256441025,0.162,58108.0,58103.0,0.00111562]
[1725256441026,0.36142,58104.0,58103.0,0.00611562]
[1725256441447,0.602377,58103.0,58102.0,0.005]
[1725256441700,0.602377,58103.0,58100.0,0.005]
[1725256441701,0.361438,58101.0,58100.0,0.005]
[1725256441907,0.602397,58101.0,58100.0,0.00611562]
[1725256442329,0.361438,58101.0,58100.0,0.01111562]
[1725256442540,0.361438,58101.0,58100.0,0.01611562]
[1725256442541,0.602397,58101.0,58100.0,0.01611562]
[1725256442760,0.02701242,58101.0,58100.0,0.01611562]
[1725256443209,0.11811242,58101.0,58091.0,0.005]
[1725256443417,0.120502,58090.0,58089.0,0.005]
[1725256443634,0.602512,58090.0,58089.0,0.015]
[1725256443864,0.361507,58090.0,58089.0,0.015]
[1725256444080,0.361482,58094.0,58093.0,0.01]
[1725256444349,0.1,58100.0,58088.0,0.005]
[1725256444588,0.361539,58085.0,58084.0,0.0008987]
[1725256444806,0.602565,58085.0,58084.0,0.0008987]
[1725256445025,0.702565,58085.0,58084.0,0.0008987]
[1725256445235,0.72958441,58085.0,58084.0,0.0008987]
[1725256446323,1.30727985,58085.0,58084.0,0.0008987]
[1725256446543,1.174371,58085.0,58084.0,0.0008987]
[1725256446761,1.019291,58085.0,58084.0,0.0008987]
[1725256448125,1.04631207,58085.0,58084.0,0.0008987]
[1725256448365,0.97061207,58085.0,58084.0,0.0008987]
[1725256448862,0.72958607,58085.0,58084.0,0.0058987]
[1725256449100,0.02702107,58085.0,58084.0,0.08921432]
[1725256449351,0.02702107,58085.0,58084.0,0.21899507]
[1725256449583,0.02702107,58085.0,58084.0,0.55072507]
[1725256449813,0.120489,58097.0,58096.0,0.00111562]
[1725256450053,0.361465,58097.0,58096.0,0.00111562]
[1725256450292,0.38847867,58097.0,58096.0,0.00111562]
[1725256451013,0.38847867,58097.0,58096.0,0.00611562]
[1725256451539,0.48847867,58097.0,58096.0,0.00611562]
[1725256451770,0.72945467,58097.0,58096.0,0.00611562]
[1725256452072,0.0894,58094.0,58086.0,0.005]
[1725256452298,0.361539,58085.0,58084.0,0.0008987]
[1725256452537,0.9691449,58085.0,58084.0,0.0008987]
[1725256452780,1.6510109,58085.0,58084.0,0.0008987]
[1725256453232,1.67803232,58085.0,58084.0,0.0008987]
[1725256453691,1.42186632,58085.0,58084.0,0.0008987]
[1725256455709,1.49536632,58085.0,58084.0,0.0008987]
[1725256455918,1.75939232,58085.0,58084.0,0.0008987]
[1725256456134,1.48221242,58085.0,58084.0,0.0008987]
[1725256456355,1.45921242,58085.0,58084.0,0.0008987]
[1725256456565,1.72323842,58085.0,58084.0,0.0008987]
[1725256456777,1.74128153,58085.0,58084.0,0.0008987]
[1725256457240,1.50025553,58085.0,58084.0,0.0008987]
[1725256457458,1.66850376,58085.0,58084.0,0.0008987]
[1725256457705,1.63855238,58085.0,58084.0,0.0008987]
[1725256458142,1.47030415,58085.0,58084.0,0.0008987]
[1725256458795,1.44730415,58085.0,58084.0,0.0008987]
[1725256459275,1.04337815,58085.0,58084.0,0.00201432]
[1725256459484,0.71767815,58085.0,58084.0,0.0008987]
[1725256460151,0.71767815,58085.0,58084.0,0.00201432]
[1725256461211,0.72970415,58085.0,58084.0,0.00201432]
[1725256461449,0.72970415,58085.0,58084.0,0.0008987]
[1725256462088,0.72970415,58085.0,58084.0,0.00201432]
[1725256462763,0.48867815,58085.0,58084.0,0.00201432]
[1725256462985,1.21086956,58085.0,58084.0,0.0008987]
[1725256463220,1.22384725,58085.0,58084.0,0.0008987]
[1725256463440,1.46487325,58085.0,58084.0,0.0008987]
[1725256463651,1.45189556,58085.0,58084.0,0.0008987]
[1725256463865,1.36122915,58085.0,58084.0,0.0008987]
[1725256464088,1.29312915,58085.0,58084.0,0.0008987]
[1725256468307,0.602637,58078.0,58077.0,0.005]
[1725256468525,0.702637,58078.0,58077.0,0.005]
[1725256468964,0.702637,58078.0,58077.0,0.00611562]
[1725256469175,0.72966039,58078.0,58077.0,0.00611562]
[1725256470479,0.72966039,58078.0,58077.0,0.005]
[1725256470694,0.60913339,58078.0,58077.0,0.00611562]
[1725256470938,0.72966039,58078.0,58077.0,0.005]
[1725256472171,0.74770333,58078.0,58077.0,0.005]
[1725256472387,0.04506633,58078.0,58077.0,0.418759]
[1725256472653,0.04506633,58078.0,58077.0,0.88903508]
[1725256474011,0.04506633,58078.0,58077.0,0.78146262]
[1725256474232,0.04506633,58078.0,58077.0,0.78346262]
[1725256475117,0.04506633,58078.0,58077.0,0.78846262]
[1725256475550,0.04506633,58078.0,58077.0,1.02952162]
[1725256476608,0.01804294,58078.0,58077.0,1.02952162]
[1725256476825,0.01804294,58078.0,58077.0,1.15175422]
[1725256477439,0.01804294,58078.0,58077.0,1.02952162]
[1725256482381,0.02701578,58083.0,58082.0,0.85974862]
[1725256482579,0.02701578,58083.0,58082.0,1.19876603]
[1725256483127,0.02701578,58083.0,58082.0,0.09221562]
[1725256483332,0.02701578,58083.0,58082.0,0.01611562]
[1725256483535,0.17622154,58083.0,58082.0,0.01611562]
[1725256483760,0.38856678,58083.0,58082.0,0.01611562]
[1725256484006,0.72960078,58083.0,58082.0,0.01611562]
[1725256485873,0.48856678,58083.0,58082.0,0.01611562]
[1725256488290,0.12701578,58083.0,58082.0,0.01611562]
[1725256488499,0.02701578,58083.0,58082.0,0.01611562]
[1725256488692,0.24753278,58083.0,58082.0,0.01611562]
[1725256488942,0.38856678,58083.0,58082.0,0.01611562]
[1725256489139,0.48856678,58083.0,58082.0,0.01611562]
[1725256489761,0.72960078,58083.0,58082.0,0.015]
[1725256489995,0.72960078,58083.0,58082.0,0.01611562]
[1725256490189,0.48856678,58083.0,58082.0,0.01611562]
[1725256495306,0.48938378,58083.0,58082.0,0.01611562]
[1725256495511,0.48938378,58083.0,58082.0,0.015]
[1725256495709,0.73041778,58083.0,58082.0,0.015]
[1725256496234,0.48938378,58083.0,58082.0,0.01611562]
[1725256496668,0.48938378,58083.0,58082.0,0.015]
[1725256497033,0.73041778,58083.0,58082.0,0.015]
[1725256497909,0.86953162,58083.0,58082.0,0.015]
[1725256498110,0.602637,58078.0,58077.0,0.0158987]
[1725256498333,0.98280584,58078.0,58077.0,0.0058987]
[1725256498537,1.08280584,58078.0,58077.0,0.0108987]
[1725256498687,1.08280584,58078.0,58077.0,0.0058987]
[1725256499102,1.10084856,58078.0,58077.0,0.0008987]
[1725256499277,1.41034956,58078.0,58077.0,0.0008987]
[1725256499689,1.19684856,58078.0,58077.0,0.0008987]
[1725256499887,1.45064856,58078.0,58077.0,0.0008987]
[1725256500095,1.42514856,58078.0,58077.0,0.0008987]
[1725256500306,1.48140584,58078.0,58077.0,0.0008987]
[1725256503603,1.55882303,58078.0,58077.0,0.0008987]
[1725256504006,1.41970919,58078.0,58077.0,0.0008987]
[1725256504297,1.55882303,58078.0,58077.0,0.0008987]
[1725256504503,1.48140584,58078.0,58077.0,0.0008987]
[1725256505549,1.48140584,58078.0,58077.0,0.0058987]
[1725256505550,0.943692,58078.0,58077.0,0.0058987]
[1725256505765,1.08280584,58078.0,58077.0,0.0058987]
[1725256506638,1.13440749,58078.0,58077.0,0.0008987]
[1725256506841,1.13440749,58078.0,58077.0,0.0058987]
[1725256507049,1.08280584,58078.0,58077.0,0.0008987]
[1725256507471,1.13440452,58078.0,58077.0,0.0008987]
[1725256508437,1.13522152,58078.0,58077.0,0.0008987]
[1725256508715,1.13522152,58078.0,58060.0,0.120564]
[1725256508716,1.085103,58059.0,58058.0,0.005]
[1725256508846,1.085103,58059.0,58049.0,0.00111562]
[1725256508847,0.361707,58058.0,58049.0,0.00111562]
[1725256509073,0.482384,58045.0,58043.0,0.005]
[1725256509292,0.120598,58044.0,58043.0,0.005]
[1725256509493,0.60299,58044.0,58043.0,0.005]
[1725256509945,0.60299,58044.0,58043.0,0.00611562]
[1725256510588,0.361794,58044.0,58043.0,0.00611562]
[1725256510831,0.38883112,58044.0,58043.0,0.00611562]
[1725256513228,0.14763512,58044.0,58043.0,0.00611562]
[1725256513429,0.38883112,58044.0,58043.0,0.00611562]
[1725256514479,0.02703712,58044.0,58043.0,0.00611562]
[1725256514721,0.02703712,58044.0,58043.0,0.00956091]
[1725256514920,0.02703712,58044.0,58043.0,0.00611562]
[1725256515133,0.02703712,58044.0,58043.0,0.06163292]
[1725256515646,0.02703712,58044.0,58043.0,0.00611562]
[1725256516585,0.02703712,58044.0,58043.0,0.54031562]
[1725256516804,0.01805419,58048.0,58047.0,0.12170662]
[1725256517003,0.01805419,58048.0,58047.0,0.54028962]
[1725256517202,0.12058,58053.0,58047.0,0.54028962]
[1725256517203,0.1,58052.0,58051.0,0.00111562]
[1725256517416,0.1,58052.0,58051.0,0.00611562]
[1725256517583,0.1,58054.0,58051.0,0.12669762]
[1725256517783,0.02703388,58055.0,58047.0,0.413582]
[1725256517784,0.02703388,58055.0,58054.0,0.005]
[1725256518211,0.02703388,58055.0,58054.0,0.00611562]
[1725256518451,0.02703388,58055.0,58054.0,0.005]
[1725256519218,0.02703388,58055.0,58054.0,0.0416745]
[1725256519456,0.02703388,58055.0,58054.0,0.57982112]
[1725256519668,0.02703388,58055.0,58054.0,0.82097512]
[1725256520079,0.02703388,58055.0,58054.0,0.54314662]
[1725256520301,0.02703388,58055.0,58054.0,0.1803]
[1725256520540,0.02703388,58055.0,58054.0,0.18141562]
[1725256521338,0.120569,58058.0,58057.0,0.00611562]
[1725256521546,0.602814,58061.0,58060.0,0.005]
[1725256521755,0.79990957,58061.0,58060.0,0.00611562]
[1725256522175,0.79990957,58061.0,58060.0,0.005]
[1725256522467,0.361701,58059.0,58058.0,0.005]
[1725256522832,0.702835,58059.0,58058.0,0.005]
[1725256523015,0.943969,58059.0,58058.0,0.005]
[1725256523447,0.943969,58059.0,58053.0,0.00111562]
[1725256523448,0.361713,58057.0,58056.0,0.005]
[1725256523647,0.461713,58057.0,58056.0,0.005]
[1725256523862,0.120575,58055.0,58054.0,0.005]
[1725256524092,0.602875,58055.0,58054.0,0.005]
[1725256524299,0.944025,58055.0,58054.0,0.005]
[1725256524501,0.702875,58055.0,58054.0,0.005]
[1725256524677,0.72990813,58055.0,58054.0,0.005]
[1725256525318,0.602885,58054.0,58053.0,0.005]
[1725256525517,0.361737,58053.0,58052.0,0.005]
[1725256525747,0.602895,58053.0,58052.0,0.005]
[1725256525951,0.120579,58053.0,58052.0,0.00611562]
[1725256526157,0.120579,58053.0,58052.0,0.10521562]
[1725256526380,0.1,58054.0,58053.0,0.08121562]
[1725256526593,0.02703313,58055.0,58053.0,0.08121562]
[1725256526594,0.02703313,58055.0,58054.0,0.00611562]
[1725256527220,0.120574,58056.0,58055.0,0.00111562]
[1725256527391,0.220574,58056.0,58055.0,0.00111562]
[1725256528299,0.46172,58056.0,58055.0,0.00111562]
[1725256529258,0.46172,58056.0,58055.0,0.00611562]
[1725256530343,0.77585462,58056.0,58055.0,0.005]
[1725256530516,0.702866,58056.0,58055.0,0.00611562]
[1725256530736,0.702866,58056.0,58055.0,0.005]
[1725256530970,0.42443079,58056.0,58055.0,0.005]
[1725256531156,0.54500479,58056.0,58055.0,0.005]
[1725256531362,0.120574,58056.0,58055.0,0.005]
[1725256531713,0.120574,58056.0,58055.0,0.00611562]
[1725256531920,0.36172,58056.0,58055.0,0.00611562]
[1725256532976,0.120574,58056.0,58055.0,0.00611562]
[1725256533148,0.36172,58056.0,58055.0,0.00611562]
[1725256535043,0.602866,58056.0,58055.0,0.005]
[1725256535990,0.602866,58056.0,58043.0,0.1214977]
[1725256535991,0.1684,58055.0,58052.0,0.005]
[1725256536194,0.241171,58050.0,58046.0,0.005]
[1725256536358,0.361774,58047.0,58046.0,0.005]
[1725256536936,0.602957,58047.0,58046.0,0.005]
[1725256537714,0.7873698,58047.0,58046.0,0.005]
[1725256538382,0.120598,58044.0,58043.0,0.0008987]
[1725256538596,0.68099,58044.0,58043.0,0.0008987]
[1725256538803,0.78099,58044.0,58043.0,0.0008987]
[1725256539009,1.022186,58044.0,58043.0,0.0008987]
[1725256539434,1.04922485,58044.0,58043.0,0.0008987]
[1725256541648,1.18961771,58044.0,58043.0,0.0008987]
[1725256542080,1.44451785,58044.0,58043.0,0.0008987]
[1725256542340,2.14788385,58044.0,58043.0,0.0008987]
[1725256542966,2.14876823,58044.0,58043.0,0.0008987]
[1725256543170,2.14788385,58044.0,58043.0,0.0008987]
[1725256543388,2.31643549,58044.0,58043.0,0.0008987]
[1725256546006,1.58086085,58044.0,58043.0,0.0008987]
[1725256546239,1.14772485,58044.0,58043.0,0.0008987]
[1725256548281,1.14772485,58044.0,58043.0,0.0008587]
[1725256553178,0.97122485,58044.0,58043.0,0.0008587]
[1725256554463,1.10595485,58044.0,58043.0,0.0008587]
[1725256554713,1.32607673,58044.0,58043.0,0.0008587]
[1725256554938,1.27450649,58044.0,58043.0,0.0008587]
[1725256555342,1.52944456,58044.0,58043.0,0.0008587]
[1725256555457,1.55244456,58044.0,58043.0,0.0008587]
[1725256556304,1.60404198,58044.0,58043.0,0.0008587]
[1725256557173,1.53870249,58044.0,58043.0,0.0008587]
[1725256558562,1.59028667,58044.0,58043.0,0.0008587]